fUST/lending_fUST_20250607
["ID","MTS","AMOUNT","RATE_DAILY","PERIOD"]
[364792496,1749243034962,-440.0,0.00019178,2]
[364792497,1749243034972,-430.0,0.00019178,2]
[364792498,1749243034981,-440.0,0.00019178,2]
[364792499,1749243034990,-836.22,0.00019178,2]
[364792500,1749243034999,-430.0,0.00019178,2]
[364792501,1749243035009,-430.0,0.00019178,2]
[364792502,1749243035018,-440.0,0.00019178,2]
[364792503,1749243035027,-236.64366156,0.00019178,2]
[364792504,1749243035036,-440.0,0.00019178,2]
[364792505,1749243035046,-430.0,0.00019178,2]
[364792506,1749243035056,-615.29,0.00019178,2]
[364792507,1749243035067,-430.0,0.00019178,2]
[364792508,1749243035076,-440.0,0.00019178,2]
[364792509,1749243035085,-155.65,0.00019178,2]
[364792510,1749243035095,-515.3,0.00019178,2]
[364792511,1749243035104,-440.0,0.00019178,2]
[364792512,1749243035113,-440.0,0.00019178,2]
[364792514,1749243035123,-440.0,0.00019178,2]
[364792515,1749243035132,-430.0,0.00019178,2]
[364792516,1749243035141,-440.0,0.00019178,2]
[364792517,1749243035151,-401.04471963,0.00019178,2]
[364792518,1749243035164,-430.0,0.00019178,2]
[364792519,1749243035174,-440.0,0.00019178,2]
[364792520,1749243035184,-440.0,0.00019178,2]
[364792521,1749243035193,-443.05644999,0.00019178,2]
[364792522,1749243035205,-440.0,0.00019178,2]
[364792523,1749243035214,-451.61966294,0.00019178,2]
[364792524,1749243035223,-450.0,0.00019178,2]
[364792525,1749243035233,-431.92347521,0.00019178,2]
[364792526,1749243035243,-440.0,0.00019178,2]
[364792527,1749243035252,-440.0,0.00019178,2]
[364792528,1749243035262,-440.0,0.00019178,2]
[364792529,1749243035272,-430.0,0.00019178,2]
[364792530,1749243035281,-440.0,0.00019178,2]
[364792531,1749243035290,-440.0,0.00019178,2]
[364792532,1749243035299,-610.28,0.00019178,2]
[364792533,1749243035310,-570.0,0.00019178,2]
[364792534,1749243035320,-440.0,0.00019178,2]
[364792535,1749243035330,-440.0,0.00019178,2]
[364792536,1749243035339,-228.78,0.00019178,2]
[364792537,1749243035348,-430.0,0.00019178,2]
[364792538,1749243035358,-430.0,0.00019178,2]
[364792539,1749243035367,-430.0,0.00019178,2]
[364792540,1749243035377,-707.42,0.00019178,2]
[364792541,1749243035386,-440.0,0.00019178,2]
[364792542,1749243035395,-440.0,0.00019178,2]
[364792543,1749243035405,-440.0,0.00019178,2]
[364792544,1749243035414,-450.0,0.00019178,2]
[364792545,1749243035424,-440.0,0.00019178,2]
[364792546,1749243035433,-430.0,0.00019178,2]
[364792547,1749243035442,-440.0,0.00019178,2]
[364792548,1749243035452,-430.0,0.00019178,2]
[364792549,1749243035463,-555.7676786,0.00019178,2]
[364792550,1749243035472,-503.58836565,0.00019178,2]
[364792551,1749243035482,-500.0,0.00019178,2]
[364792552,1749243035492,-500.0,0.00019178,2]
[364792553,1749243035501,-500.0,0.00019178,2]
[364792554,1749243035510,-500.0,0.00019178,2]
[364792555,1749243035519,-500.0,0.00019178,2]
[364792556,1749243035529,-440.0,0.00019178,2]
[364792557,1749243035538,-430.0,0.00019178,2]
[364792558,1749243035547,-440.0,0.00019178,2]
[364792559,1749243035557,-440.0,0.00019178,2]
[364792560,1749243035567,-176.25279022,0.00019178,2]
[364792561,1749243035576,-440.0,0.00019178,2]
[364792562,1749243035586,-1003.82,0.00019178,2]
[364792563,1749243035595,-430.0,0.00019178,2]
[364792564,1749243035605,-381.47508225,0.00019178,2]
[364792565,1749243035614,-264.69644418,0.00019178,2]
[364792566,1749243035623,-400.48370489,0.00019178,2]
[364792567,1749243035632,-430.0,0.00019178,2]
[364792568,1749243035641,-1142.64,0.00019178,2]
[364792569,1749243035651,-440.0,0.00019178,2]
[364792570,1749243035661,-440.0,0.00019178,2]
[364792571,1749243035670,-430.0,0.00019178,2]
[364792572,1749243035679,-430.0,0.00019178,2]
[364792573,1749243035689,-391.8984415,0.00019178,2]
[364792574,1749243035698,-430.0,0.00019178,2]
[364792575,1749243035707,-440.0,0.00019178,2]
[364792576,1749243035717,-776.51,0.00019178,2]
[364792577,1749243035726,-430.0,0.00019178,2]
[364792578,1749243035735,-186.150235,0.00019178,2]
[364792579,1749243035745,-15777.04643045,0.00019178,2]
[364792580,1749243035754,-193.96334616,0.00019452,2]
[364792581,1749243035764,-420.0,0.00019452,2]
[364792582,1749243035773,-440.0,0.00019452,2]
[364792583,1749243035782,-420.0,0.00019452,2]
[364792584,1749243035791,-420.0,0.00019452,2]
[364792585,1749243035801,-420.0,0.00019452,2]
[364792586,1749243035812,-560.0,0.00019452,2]
[364792587,1749243035821,-560.0,0.00019452,2]
[364792588,1749243035831,-420.0,0.00019452,2]
[364792589,1749243035840,-420.0,0.00019452,2]
[364792590,1749243035849,-420.0,0.00019452,2]
[364792591,1749243035859,-420.0,0.00019452,2]
[364792592,1749243035868,-380.0,0.00019452,2]
[364792593,1749243035877,-370.0,0.00019452,2]
[364792594,1749243035886,-400.0,0.00019452,2]
[364792595,1749243035895,-225.06760226,0.00019452,2]
[364792596,1749243035904,-440.0,0.00019452,2]
[364792597,1749243035913,-440.0,0.00019452,2]
[364792598,1749243035923,-294.57894625,0.00019452,2]
[364792599,1749243035932,-218.03,0.00019452,2]
[364792600,1749243035942,-480.0,0.00019452,2]
[364792601,1749243035951,-440.0,0.00019452,2]
[364792602,1749243035960,-420.0,0.00019452,2]
[364792603,1749243035970,-420.0,0.00019452,2]
[364792604,1749243035979,-440.0,0.00019452,2]
[364792605,1749243035994,-420.0,0.00019452,2]
[364792606,1749243036003,-499.70322068,0.00019452,2]
[364792607,1749243036013,-420.0,0.00019452,2]
[364792608,1749243036022,-430.0,0.00019452,2]
[364792609,1749243036031,-440.0,0.00019452,2]
[364792610,1749243036040,-440.0,0.00019452,2]
[364792611,1749243036050,-440.0,0.00019452,2]
[364792612,1749243036059,-555.29836005,0.00019452,2]
[364792613,1749243036070,-677.64,0.00019452,2]
[364792614,1749243036079,-374.11694667,0.00019452,2]
[364792615,1749243036088,-440.0,0.00019452,2]
[364792616,1749243036098,-440.0,0.00019452,2]
[364792617,1749243036107,-440.0,0.00019452,2]
[364792618,1749243036117,-633.08,0.00019452,2]
[364792619,1749243036127,-440.0,0.00019452,2]
[364792620,1749243036136,-440.0,0.00019452,2]
[364792621,1749243036146,-518.28,0.00019452,2]
[364792622,1749243036156,-249.98,0.00019452,2]
[364792623,1749243036168,-440.0,0.00019452,2]
[364792624,1749243036177,-440.0,0.00019452,2]
[364792625,1749243036187,-440.0,0.00019452,2]
[364792626,1749243036197,-420.0,0.00019452,2]
[364792627,1749243036206,-440.0,0.00019452,2]
[364792628,1749243036215,-440.0,0.00019452,2]
[364792629,1749243036224,-836.22,0.00019452,2]
[364792630,1749243036234,-440.0,0.00019452,2]
[364792631,1749243036245,-440.0,0.00019452,2]
[364792632,1749243036254,-615.29,0.00019452,2]
[364792633,1749243036263,-440.0,0.00019452,2]
[364792634,1749243036272,-420.0,0.00019452,2]
[364792635,1749243036281,-440.0,0.00019452,2]
[364792636,1749243036291,-420.0,0.00019452,2]
[364792637,1749243036300,-440.0,0.00019452,2]
[364792638,1749243036311,-440.0,0.00019452,2]
[364792639,1749243036322,-440.0,0.00019452,2]
[364792640,1749243036331,-440.0,0.00019452,2]
[364792641,1749243036341,-420.0,0.00019452,2]
[364792642,1749243036351,-302.03436861,0.00019452,2]
[364792643,1749243036360,-440.0,0.00019452,2]
[364792644,1749243036370,-420.0,0.00019452,2]
[364792645,1749243036379,-440.0,0.00019452,2]
[364792646,1749243036388,-610.28,0.00019452,2]
[364792647,1749243036398,-440.0,0.00019452,2]
[364792648,1749243036407,-420.0,0.00019452,2]
[364792649,1749243036417,-707.42,0.00019452,2]
[364792650,1749243036426,-440.0,0.00019452,2]
[364792651,1749243036435,-420.0,0.00019452,2]
[364792652,1749243036445,-440.0,0.00019452,2]
[364792653,1749243036454,-440.0,0.00019452,2]
[364792654,1749243036463,-440.0,0.00019452,2]
[364792655,1749243036472,-420.0,0.00019452,2]
[364792656,1749243036482,-440.0,0.00019452,2]
[364792657,1749243036491,-411.72059834,0.00019452,2]
[364792658,1749243036501,-1003.82,0.00019452,2]
[364792659,1749243036511,-1142.64,0.00019452,2]
[364792660,1749243036521,-310.0,0.00019452,2]
[364792661,1749243036531,-304.39,0.00019452,2]
[364792662,1749243036540,-440.0,0.00019452,2]
[364792663,1749243036550,-776.51,0.00019452,2]
[364792664,1749243036559,-500.0,0.00019526,2]
[364792665,1749243036570,-410.0,0.00019726,2]
[364792666,1749243036580,-440.0,0.00019726,2]
[364792667,1749243036589,-410.0,0.00019726,2]
[364792668,1749243036599,-430.0,0.00019726,2]
[364792669,1749243036609,-400.0,0.00019726,2]
[364792670,1749243036618,-440.0,0.00019726,2]
[364792671,1749243036628,-440.0,0.00019726,2]
[364792672,1749243036637,-677.64,0.00019726,2]
[364792673,1749243036646,-440.0,0.00019726,2]
[364792674,1749243036656,-440.0,0.00019726,2]
[364792675,1749243036665,-440.0,0.00019726,2]
[364792676,1749243036674,-633.08,0.00019726,2]
[364792677,1749243036684,-440.0,0.00019726,2]
[364792678,1749243036693,-440.0,0.00019726,2]
[364792679,1749243036704,-440.0,0.00019726,2]
[364792680,1749243036813,-440.0,0.00019726,2]
[364792681,1749243036823,-440.0,0.00019726,2]
[364792682,1749243036833,-164.33,0.00019726,2]
[364792683,1749243036842,-440.0,0.00019726,2]
[364792684,1749243036851,-836.22,0.00019726,2]
[364792685,1749243036861,-440.0,0.00019726,2]
[364792686,1749243036870,-440.0,0.00019726,2]
[364792687,1749243036880,-615.29,0.00019726,2]
[364792688,1749243036890,-440.0,0.00019726,2]
[364792689,1749243036899,-440.0,0.00019726,2]
[364792690,1749243036909,-440.0,0.00019726,2]
[364792691,1749243036919,-163.32,0.00019726,2]
[364792692,1749243036928,-440.0,0.00019726,2]
[364792693,1749243036938,-410.0,0.00019726,2]
[364792694,1749243036948,-340.0,0.00019726,2]
[364792695,1749243036961,-440.0,0.00019726,2]
[364792696,1749243036970,-610.28,0.00019726,2]
[364792697,1749243036979,-440.0,0.00019726,2]
[364792698,1749243036989,-707.42,0.00019726,2]
[364792699,1749243036998,-440.0,0.00019726,2]
[364792700,1749243037007,-440.0,0.00019726,2]
[364792701,1749243037018,-440.0,0.00019726,2]
[364792702,1749243037027,-440.0,0.00019726,2]
[364792703,1749243037037,-440.0,0.00019726,2]
[364792704,1749243037046,-1003.82,0.00019726,2]
[364792705,1749243037056,-1142.64,0.00019726,2]
[364792706,1749243037066,-410.0,0.00019726,2]
[364792707,1749243037075,-776.51,0.00019726,2]
[364792708,1749243037085,-161.68975248,0.0001975,2]
[364792709,1749243037094,-327.88629509,0.00019833,2]
[364792710,1749243037104,-529.65901592,0.00019999,2]
[364792711,1749243037113,-440.0,0.0002,2]
[364792712,1749243037122,-440.0,0.0002,2]
[364792713,1749243037132,-383.35,0.0002,2]
[364792714,1749243037141,-677.64,0.0002,2]
[364792715,1749243037151,-440.0,0.0002,2]
[364792716,1749243037163,-440.0,0.0002,2]
[364792717,1749243037173,-440.0,0.0002,2]
[364792718,1749243037182,-633.08,0.0002,2]
[364792719,1749243037191,-440.0,0.0002,2]
[364792720,1749243037202,-440.0,0.0002,2]
[364792721,1749243037211,-440.0,0.0002,2]
[364792722,1749243037221,-559.57,0.0002,2]
[364792723,1749243037230,-440.0,0.0002,2]
[364792724,1749243037240,-440.0,0.0002,2]
[364792725,1749243037249,-836.22,0.0002,2]
[364792726,1749243037258,-440.0,0.0002,2]
[364792727,1749243037267,-440.0,0.0002,2]
[364792728,1749243037276,-615.29,0.0002,2]
[364792729,1749243037285,-440.0,0.0002,2]
[364792730,1749243037294,-440.0,0.0002,2]
[364792731,1749243037303,-440.0,0.0002,2]
[364792732,1749243037313,-440.0,0.0002,2]
[364792733,1749243037323,-440.0,0.0002,2]
[364792734,1749243037332,-610.28,0.0002,2]
[364792735,1749243037342,-440.0,0.0002,2]
[364792736,1749243037351,-707.42,0.0002,2]
[364792737,1749243037360,-440.0,0.0002,2]
[364792738,1749243037369,-440.0,0.0002,2]
[364792739,1749243037378,-440.0,0.0002,2]
[364792740,1749243037387,-440.0,0.0002,2]
[364792741,1749243037396,-440.0,0.0002,2]
[364792742,1749243037405,-1003.82,0.0002,2]
[364792743,1749243037415,-1142.64,0.0002,2]
[364792744,1749243037424,-776.51,0.0002,2]
[364792745,1749243037433,-1383.577514,0.00020083,2]
[364792746,1749243037442,-303.147,0.00020124,2]
[364792747,1749243037451,-365.619585,0.00020187,2]
[364792748,1749243037460,-440.0,0.00020273,2]
[364792749,1749243037469,-390.0,0.00020273,2]
[364792750,1749243037478,-677.64,0.00020273,2]
[364792751,1749243037488,-440.0,0.00020273,2]
[364792752,1749243037497,-440.0,0.00020273,2]
[364792753,1749243037507,-440.0,0.00020273,2]
[364792754,1749243037516,-633.08,0.00020273,2]
[364792755,1749243037525,-440.0,0.00020273,2]
[364792756,1749243037534,-440.0,0.00020273,2]
[364792757,1749243037544,-440.0,0.00020273,2]
[364792758,1749243037553,-440.0,0.00020273,2]
[364792759,1749243037563,-440.0,0.00020273,2]
[364792760,1749243037572,-836.22,0.00020273,2]
[364792761,1749243037582,-440.0,0.00020273,2]
[364792762,1749243037591,-440.0,0.00020273,2]
[364792763,1749243037600,-615.29,0.00020273,2]
[364792764,1749243037611,-440.0,0.00020273,2]
[364792765,1749243037620,-440.0,0.00020273,2]
[364792766,1749243037630,-440.0,0.00020273,2]
[364792767,1749243037640,-440.0,0.00020273,2]
[364792768,1749243037649,-440.0,0.00020273,2]
[364792769,1749243037658,-610.28,0.00020273,2]
[364792770,1749243037668,-440.0,0.00020273,2]
[364792771,1749243037678,-707.42,0.00020273,2]
[364792772,1749243037687,-440.0,0.00020273,2]
[364792773,1749243037696,-440.0,0.00020273,2]
[364792774,1749243037705,-440.0,0.00020273,2]
[364792775,1749243037715,-440.0,0.00020273,2]
[364792776,1749243037724,-440.0,0.00020273,2]
[364792778,1749243037733,-1003.82,0.00020273,2]
[364792780,1749243037743,-1142.64,0.00020273,2]
[364792782,1749243037752,-776.51,0.00020273,2]
[364792783,1749243037762,-160.0,0.00020343,2]
[364792784,1749243037771,-834.50537533,0.00020343,2]
[364792785,1749243037780,-229.52673067,0.00020343,2]
[364792786,1749243037789,-160.0,0.00020343,2]
[364792788,1749243037799,-423.83542519,0.00020343,2]
[364792790,1749243037808,-160.0,0.00020343,2]
[364792792,1749243037817,-160.0,0.00020343,2]
[364792795,1749243037826,-842.5625,0.00020343,2]
[364792797,1749243037836,-212.976918,0.00020343,2]
[364792798,1749243037846,-440.0,0.00020547,2]
[364792800,1749243037856,-677.64,0.00020547,2]
[364792801,1749243037865,-440.0,0.00020547,2]
[364792802,1749243037875,-633.08,0.00020547,2]
[364792803,1749243037884,-440.0,0.00020547,2]
[364792804,1749243037893,-440.0,0.00020547,2]
[364792805,1749243037903,-440.0,0.00020547,2]
[364792806,1749243037912,-836.22,0.00020547,2]
[364792807,1749243037922,-440.0,0.00020547,2]
[364792808,1749243037931,-615.29,0.00020547,2]
[364792809,1749243037941,-440.0,0.00020547,2]
[364792810,1749243037952,-440.0,0.00020547,2]
[364792811,1749243037961,-440.0,0.00020547,2]
[364792812,1749243037971,-610.28,0.00020547,2]
[364792813,1749243037980,-546.46,0.00020547,2]
[364792815,1749243037990,-707.42,0.00020547,2]
[364792817,1749243037999,-440.0,0.00020547,2]
[364792818,1749243038008,-440.0,0.00020547,2]
[364792819,1749243038018,-440.0,0.00020547,2]
[364792821,1749243038027,-440.0,0.00020547,2]
[364792823,1749243038037,-440.0,0.00020547,2]
[364792824,1749243038046,-1003.82,0.00020547,2]
[364792826,1749243038055,-1142.64,0.00020547,2]
[364792828,1749243038068,-1100.0,0.00020762,2]
[364792830,1749243038077,-440.0,0.00020821,2]
[364792832,1749243038087,-677.64,0.00020821,2]
[364792833,1749243038097,-440.0,0.00020821,2]
[364792835,1749243038106,-633.08,0.00020821,2]
[364792837,1749243038116,-440.0,0.00020821,2]
[364792839,1749243038125,-440.0,0.00020821,2]
[364792841,1749243038135,-440.0,0.00020821,2]
[364792843,1749243038144,-836.22,0.00020821,2]
[364792845,1749243038154,-440.0,0.00020821,2]
[364792847,1749243038168,-615.29,0.00020821,2]
[364792849,1749243038177,-440.0,0.00020821,2]
[364792850,1749243038186,-440.0,0.00020821,2]
[364792851,1749243038195,-610.28,0.00020821,2]
[364792852,1749243038206,-707.42,0.00020821,2]
[364792853,1749243038215,-440.0,0.00020821,2]
[364792854,1749243038225,-440.0,0.00020821,2]
[364792855,1749243038234,-323.94490726,0.00020821,2]
[364792856,1749243038244,-440.0,0.00020821,2]
[364792857,1749243038254,-1003.82,0.00020821,2]
[364792858,1749243038263,-1142.64,0.00020821,2]
[364792859,1749243038272,-420.0,0.00020898,2]
[364792860,1749243038282,-420.0,0.00020898,2]
[364792861,1749243038291,-1286.84477288,0.000209,4]
[364792862,1749243038301,-1286.84477264,0.00021038,4]
[364792864,1749243038312,-250.0,0.00021058,2]
[364792865,1749243038322,-440.0,0.00021095,2]
[364792867,1749243038331,-677.64,0.00021095,2]
[364792868,1749243038341,-440.0,0.00021095,2]
[364792869,1749243038350,-633.08,0.00021095,2]
[364792870,1749243038360,-440.0,0.00021095,2]
[364792871,1749243038369,-440.0,0.00021095,2]
[364792872,1749243038379,-440.0,0.00021095,2]
[364792873,1749243038388,-836.22,0.00021095,2]
[364792874,1749243038397,-302.49728591,0.00021095,2]
[364792875,1749243038491,-137.50271409,0.00021095,2]
[364792876,1749243038501,-615.29,0.00021095,2]
[364792877,1749243038510,-440.0,0.00021095,2]
[364792878,1749243038520,-440.0,0.00021095,2]
[364792879,1749243038530,-610.28,0.00021095,2]
[364792880,1749243038540,-707.42,0.00021095,2]
[364792881,1749243038550,-440.0,0.00021095,2]
[364792882,1749243038560,-320.49802877,0.00021095,2]
[364792883,1749243038571,-440.0,0.00021095,2]
[364792884,1749243038581,-1003.82,0.00021095,2]
[364792885,1749243038590,-1142.64,0.00021095,2]
[364792886,1749243038600,-1286.84477264,0.00021176,4]
[364792887,1749243038610,-1286.84477264,0.00021314,5]
[364792888,1749243038619,-209.85,0.00021369,2]
[364792889,1749243038628,-677.64,0.00021369,2]
[364792890,1749243038638,-440.0,0.00021369,2]
[364792891,1749243038647,-633.08,0.00021369,2]
[364792892,1749243038657,-440.0,0.00021369,2]
[364792893,1749243038666,-440.0,0.00021369,2]
[364792894,1749243038675,-440.0,0.00021369,2]
[364792895,1749243038685,-836.22,0.00021369,2]
[364792896,1749243038695,-440.0,0.00021369,2]
[364792897,1749243038704,-615.29,0.00021369,2]
[364792898,1749243038714,-440.0,0.00021369,2]
[364792899,1749243038723,-440.0,0.00021369,2]
[364792900,1749243038733,-610.28,0.00021369,2]
[364792901,1749243038743,-707.42,0.00021369,2]
[364792902,1749243038752,-440.0,0.00021369,2]
[364792903,1749243038761,-440.0,0.00021369,2]
[364792904,1749243038770,-1003.82,0.00021369,2]
[364792905,1749243038780,-1142.64,0.00021369,2]
[364792906,1749243038790,-1286.84477264,0.00021452,5]
[364792907,1749243038799,-435.84707379,0.00021543,2]
[364792908,1749243038809,-1286.84477264,0.0002159,5]
[364792909,1749243038821,-3069.83577145,0.00021641,2]
[364792910,1749243038833,-767.68184008,0.00021641,2]
[364792920,1749243040542,-174.05910679,0.00019078,2]
[364792922,1749243040552,-440.0,0.00019178,2]
[364792924,1749243040561,-271.12052583,0.00019178,2]
[364792926,1749243040572,-440.0,0.00019178,2]
[364792928,1749243040582,-420.0,0.00019452,2]
[364792931,1749243040591,-440.0,0.00019452,2]
[364792932,1749243040600,-440.0,0.00019726,2]
[364792935,1749243040610,-440.0,0.0002,2]
[364792936,1749243040619,-776.51,0.00020547,2]
[364792938,1749243040629,-776.51,0.00020821,2]
[364792941,1749243040638,-776.51,0.00021095,2]
[364792943,1749243040647,-776.51,0.00021369,2]
[364792944,1749243040656,-4372.84532609,0.00021641,2]
[364793519,1749243046336,-440.0,0.00019178,2]
[364793534,1749243046461,-430.0,0.00019178,2]
[364793536,1749243046470,-471.69763156,0.00019452,2]
[364793538,1749243046480,-174.05910677,0.00019844,2]
[364793540,1749243046490,-440.0,0.00020273,2]
[364793542,1749243046501,-440.0,0.00020547,2]
[364793544,1749243046511,-440.0,0.00020821,2]
[364793547,1749243046521,-440.0,0.00021095,2]
[364793549,1749243046530,-440.0,0.00021369,2]
[364793551,1749243046539,-5261.32326167,0.00021641,2]
[364794687,1749243114835,257.33624269,0.00018995,2]
[364794691,1749243292839,200102.48974162,0.00024533,120]
[364794698,1749243531035,224.300336,0.00018562,2]
[364794711,1749244045095,-152.58052211,0.00019076,2]
[364794712,1749244045117,-293.77507321,0.00019078,2]
[364794713,1749244045264,-421.20366846,0.00019078,2]
[364794714,1749244045286,-151.30541512,0.00019166,2]
[364794715,1749244045307,-500.0,0.00019173,2]
[364794716,1749244045329,-465.55619232,0.00019173,2]
[364794717,1749244045352,-500.0,0.00019173,2]
[364794718,1749244045376,-300.0,0.00019175,2]
[364794719,1749244045400,-300.0,0.00019175,2]
[364794720,1749244045422,-300.0,0.00019175,2]
[364794721,1749244045445,-300.0,0.00019176,2]
[364794722,1749244045466,-300.0,0.00019176,2]
[364794723,1749244045495,-300.0,0.00019176,2]
[364794724,1749244045519,-1200.0,0.00019176,2]
[364794725,1749244045543,-500.0,0.00019176,2]
[364794726,1749244045568,-500.0,0.00019176,2]
[364794727,1749244045594,-500.0,0.00019176,2]
[364794728,1749244045615,-500.0,0.00019176,2]
[364794729,1749244045641,-500.0,0.00019176,2]
[364794730,1749244045663,-161.01657455,0.00019176,2]
[364794731,1749244045690,-500.0,0.00019176,2]
[364794732,1749244045714,-187.76607523,0.00019176,2]
[364794733,1749244045738,-500.0,0.00019176,2]
[364794734,1749244045762,-500.0,0.00019176,2]
[364794735,1749244045784,-500.0,0.00019176,2]
[364794736,1749244045808,-500.0,0.00019176,2]
[364794737,1749244045832,-500.0,0.00019176,2]
[364794738,1749244045857,-500.0,0.00019176,2]
[364794739,1749244045880,-500.0,0.00019176,2]
[364794740,1749244045904,-500.0,0.00019176,2]
[364794741,1749244045930,-500.0,0.00019176,2]
[364794742,1749244045953,-500.0,0.00019176,2]
[364794743,1749244045975,-500.0,0.00019176,2]
[364794744,1749244045998,-500.0,0.00019176,2]
[364794745,1749244046022,-500.0,0.00019176,2]
[364794746,1749244046046,-500.0,0.00019176,2]
[364794747,1749244046070,-500.0,0.00019176,2]
[364794748,1749244046095,-500.0,0.00019176,2]
[364794749,1749244046121,-500.0,0.00019176,2]
[364794750,1749244046146,-500.0,0.00019176,2]
[364794751,1749244046169,-500.0,0.00019176,2]
[364794752,1749244046191,-500.0,0.00019176,2]
[364794753,1749244046214,-500.0,0.00019176,2]
[364794754,1749244046238,-500.0,0.00019176,2]
[364794755,1749244046260,-500.0,0.00019176,2]
[364794756,1749244046283,-500.0,0.00019176,2]
[364794757,1749244046306,-500.0,0.00019176,2]
[364794758,1749244046329,-500.0,0.00019176,2]
[364794759,1749244046353,-500.0,0.00019176,2]
[364794760,1749244046376,-500.0,0.00019176,2]
[364794761,1749244046400,-239.94872742,0.00019176,2]
[364794762,1749244054125,-260.05127258,0.00019176,2]
[364794763,1749244054148,-500.0,0.00019176,2]
[364794764,1749244054172,-500.0,0.00019176,2]
[364794765,1749244054196,-500.0,0.00019176,2]
[364794766,1749244054220,-500.0,0.00019176,2]
[364794767,1749244054249,-500.0,0.00019176,2]
[364794768,1749244054274,-500.0,0.00019176,2]
[364794769,1749244054298,-500.0,0.00019176,2]
[364794770,1749244054321,-500.0,0.00019176,2]
[364794771,1749244054343,-500.0,0.00019176,2]
[364794772,1749244054367,-500.0,0.00019176,2]
[364794773,1749244054390,-500.0,0.00019176,2]
[364794774,1749244054414,-638.16863066,0.00019176,2]
[364794775,1749244054437,-500.0,0.00019176,2]
[364794776,1749244054459,-500.0,0.00019176,2]
[364794777,1749244054482,-500.0,0.00019176,2]
[364794778,1749244054505,-500.0,0.00019176,2]
[364794779,1749244054528,-500.0,0.00019176,2]
[364794780,1749244054556,-500.0,0.00019176,2]
[364794781,1749244054583,-500.0,0.00019176,2]
[364794782,1749244054609,-500.0,0.00019176,2]
[364794783,1749244054640,-463.81686307,0.00019176,2]
[364794784,1749244054666,-440.42409589,0.00019176,2]
[364794785,1749244054689,-1387.93864285,0.00019177,2]
[364794786,1749244054712,-370.76131114,0.00019177,2]
[364794787,1749244054735,-440.0,0.00019178,2]
[364794788,1749244054757,-430.0,0.00019178,2]
[364794789,1749244054778,-314.54858786,0.00019178,2]
[364794790,1749244054799,-440.0,0.00019178,2]
[364794791,1749244054820,-72.75229041,0.00019178,2]
[364794793,1749244192074,370.486549,0.00013699,2]
[364794809,1749244232576,-300.0,0.00019176,2]
[364794810,1749244232589,-160.0,0.00019177,2]
[364794811,1749244232599,-500.0,0.00019177,2]
[364794812,1749244232608,-500.0,0.00019177,2]
[364794813,1749244232618,-250.0,0.00019177,2]
[364794814,1749244232628,-500.0,0.00019177,2]